bitfinex-derivatives/quotes_SOLF0:USTF0_20251006
["timestamp","ask_amount","ask_price","bid_price","bid_amount"]
[1759731892292,7.52,233.85,233.81,3.848]
[1759731892501,105.5,233.86,233.81,3.848]
[1759731893098,7.52,233.85,233.81,3.848]
[1759731893800,105.5,233.86,233.81,3.848]
[1759731894299,7.52,233.85,233.81,3.848]
[1759731894498,112.98,233.84,233.81,3.848]
[1759731896397,105.42,233.86,233.83,11.4077]
[1759731896602,105.42,233.86,233.8,7.56]
[1759731897602,105.42,233.86,233.84,3.8475]
[1759731898501,105.4,233.85,233.84,3.8475]
[1759731899201,7.52,233.87,233.84,3.8475]
[1759731899402,105.4,233.86,233.84,3.8475]
[1759731900304,7.52,233.88,233.84,3.8475]
[1759731900497,112.92,233.87,233.84,3.8475]
[1759731900903,7.52,233.87,233.84,3.8475]
[1759731901104,105.4,233.86,233.84,3.8475]
[1759731901305,112.92,233.86,233.84,3.8475]
[1759731901903,7.52,233.86,233.84,3.8475]
[1759731902105,105.4,233.85,233.84,3.8475]
[1759731902503,7.52,233.86,233.84,3.8475]
[1759731902700,1.21749837,233.88,233.84,3.8475]
[1759731903504,7.52,233.86,233.82,3.8479]
[1759731903699,79.04,233.85,233.82,3.8479]
[1759731903900,7.52,233.84,233.82,3.8479]
[1759731904497,54.82,233.85,233.83,3.8476]
[1759731904707,7.52,233.9,233.79,7.56]
[1759731904908,7.52,233.9,233.81,67.4187]
[1759731905109,60.58,233.89,233.86,3.8471]
[1759731906404,7.52,233.89,233.86,3.8471]
[1759731907004,35.26,233.89,233.83,11.4076]
[1759731907207,7.52,233.88,233.78,7.56]
[1759731907903,7.52,233.86,233.83,3.8477]
[1759731908613,7.52,233.86,233.74,67.436]
[1759731908614,8.73749837,233.86,233.74,67.436]
[1759731908909,3.8476,233.84,233.74,7.56]
[1759731909101,7.52,233.83,233.74,7.56]
[1759731909505,1.21749837,233.86,233.78,3.8484]
[1759731909704,7.52,233.85,233.78,7.56]
[1759731909914,105.38,233.86,233.78,7.56]
[1759731910102,35.12,233.86,233.78,7.56]
[1759731910302,1.21749837,233.89,233.83,3.8476]
[1759731910303,7.52,233.89,233.83,3.8476]
[1759731910508,7.52,233.86,233.83,3.8476]
[1759731910710,69.92,233.87,233.83,3.8476]
[1759731910909,7.52,233.88,233.83,3.8476]
[1759731911111,7.52,233.86,233.83,3.8476]
[1759731911512,103.1,233.87,233.83,3.8476]
[1759731911819,105.38,233.87,233.81,3.848]
[1759731912017,7.52,233.85,233.81,3.848]
[1759731912219,1.21749837,233.86,233.81,3.848]
[1759731913015,7.52,233.85,233.81,3.848]
[1759731913923,7.52,233.84,233.81,3.848]
[1759731914515,7.52,233.84,233.78,11.4084]
[1759731914714,7.52,233.84,233.78,3.8484]
[1759731914921,7.52,233.84,233.74,11.08039885]
[1759731915318,7.52,233.84,233.75,3.52039885]
[1759731915517,7.52,233.84,233.8,3.8481]
[1759731915918,105.38,233.85,233.8,3.8481]
[1759731916120,105.38,233.85,233.81,3.8479]
[1759731916421,7.52,233.84,233.81,3.8479]
[1759731916720,1.21749837,233.86,233.81,3.8479]
[1759731916918,7.52,233.84,233.81,3.8479]
[1759731917515,85.68,233.85,233.79,3.8484]
[1759731917721,7.57,233.85,233.77,7.56]
[1759731917920,105.38,233.84,233.77,7.56]
[1759731918623,105.38,233.84,233.8,3.8481]
[1759731919120,7.57,233.83,233.8,3.8481]
[1759731919522,105.38,233.84,233.8,3.8481]
[1759731920125,7.57,233.83,233.8,3.8481]
[1759731920628,105.38,233.84,233.8,3.8481]
[1759731921322,1.21749837,233.86,233.8,11.4281]
[1759731921518,7.57,233.88,233.78,8.79749837]
[1759731921723,58.66,233.85,233.78,8.79749837]
[1759731922624,58.66,233.85,233.82,3.8478]
[1759731922929,7.57,233.84,233.82,3.8478]
[1759731927529,105.38,233.85,233.82,3.8478]
[1759731927735,7.57,233.84,233.82,3.8478]
[1759731928324,105.38,233.85,233.82,3.8478]
[1759731928524,105.38,233.84,233.82,3.8478]
[1759731928729,7.57,233.83,233.82,3.8478]
[1759731929528,7.57,233.83,233.8,3.8482]
[1759731929729,7.57,233.83,233.76,3.52039885]
[1759731930636,105.38,233.84,233.78,3.8486]
[1759731930836,7.57,233.83,233.78,3.8486]
[1759731931036,7.57,233.83,233.75,3.52039885]
[1759731931437,3.8471,233.87,233.8,3.8481]
[1759731931637,112.93,233.86,233.8,3.8481]
[1759731932229,112.93,233.86,233.75,3.52039885]
[1759731932230,7.57,233.86,233.78,7.58]
[1759731932434,39.12,233.85,233.8,1.21749837]
[1759731932837,39.12,233.85,233.81,7.58]
[1759731933133,46.69,233.85,233.81,7.58]
[1759731933539,46.69,233.85,233.83,3.8476]
[1759731936442,7.57,233.85,233.83,3.8476]
[1759731938645,7.72,233.9,233.84,7.26]
[1759731938841,113.08,233.88,233.84,7.26]
[1759731939246,7.72,233.87,233.84,7.26]
[1759731939547,7.72,233.87,233.85,3.8473]
[1759731939740,113.08,233.88,233.8,8.47749837]
[1759731940140,113.08,233.88,233.83,3.8476]
[1759731940342,105.36,233.88,233.83,3.8476]
[1759731940543,105.34,233.88,233.8,8.47749837]
[1759731941144,7.72,233.87,233.8,7.26]
[1759731943649,7.72,233.87,233.84,3.8475]
[1759731944043,105.34,233.88,233.84,3.8475]
[1759731944344,7.72,233.91,233.85,3.8473]
[1759731944644,7.72,233.88,233.85,3.8473]
[1759731944850,3.8464,233.92,233.85,3.8473]
[1759731944851,3.846,233.94,233.85,3.8473]
[1759731945046,70.18,233.93,233.85,3.8473]
[1759731945242,70.18,233.93,233.86,3.8471]
[1759731946240,7.72,233.93,233.86,3.8471]
[1759731946446,7.72,233.91,233.86,3.8471]
[1759731946646,105.34,233.92,233.86,3.8471]
[1759731947349,7.72,233.91,233.86,3.8471]
[1759731947552,7.72,233.91,233.87,3.847]
[1759731947748,7.54,233.93,233.87,3.847]
[1759731947944,105.34,233.92,233.87,3.847]
[1759731948249,7.54,233.91,233.87,3.847]
[1759731948449,105.34,233.92,233.87,3.847]
[1759731948950,7.54,233.91,233.87,3.847]
[1759731949350,105.34,233.92,233.87,3.847]
[1759731949547,7.54,233.9,233.87,3.847]
[1759731949855,7.54,233.9,233.88,3.8468]
[1759731950749,105.32,233.91,233.88,3.8468]
[1759731950951,7.54,233.9,233.88,3.8468]
[1759731951345,5.63143089,233.97,233.88,3.8468]
[1759731951547,3.0742518,234.09,233.96,61.7217347]
[1759731951749,7.54,234.22,234.08,1.9017347]
[1759731951954,2.58,234.17,234.11,1.9017347]
[1759731952153,7.54,234.15,234.12,3.80040585]
[1759731952458,7.54,234.14,234.13,3.80040585]
[1759731952656,80.1,234.21,234.13,11.2926185]
[1759731952952,52.86992631,234.16,234.14,11.2926185]
[1759731953155,52.86992631,234.16,234.07,59.7914]
[1759731953156,5.57788994,234.17,234.15,11.2926185]
[1759731953356,8.15788994,234.17,234.16,11.49629024]
[1759731953553,13.11788994,234.17,234.16,11.49629024]
[1759731953754,15.69788994,234.17,234.16,11.49629024]
[1759731954048,58.44781625,234.17,234.16,11.49629024]
[1759731954657,54.17744885,234.17,234.16,11.49629024]
[1759731956651,5.57788994,234.17,234.16,7.36480884]
[1759731957561,5.57788994,234.19,234.16,7.36480884]
[1759731957762,5.57788994,234.18,234.17,7.36480884]
[1759731958362,5.57788994,234.19,234.17,7.36480884]
[1759731958662,13.11788994,234.19,234.18,7.36480884]
[1759731959052,64.02570619,234.19,234.18,7.36480884]
[1759731959458,64.02570619,234.19,234.18,3.5871691]
[1759731960061,7.54,234.18,234.06,1.9017347]
[1759731960262,45.32992631,234.13,234.07,3.5368301]
[1759731960563,52.86992631,234.13,234.08,3.5368301]
[1759731960763,5.57788994,234.12,234.09,3.5368301]
[1759731960955,2.3748057,234.12,234.1,3.5368301]
[1759731961152,107.22,234.17,234.06,1.9017347]
[1759731961153,114.76,234.17,234.11,3.5368301]
[1759731961352,2.3748057,234.12,234.06,5.40371542]
[1759731961559,2.3748057,234.12,234.07,7.03568496]
[1759731961762,2.3748057,234.16,234.11,1.9017347]
[1759731962062,2.3748057,234.16,234.12,3.53370424]
[1759731962259,2.3748057,234.16,234.13,3.53370424]
[1759731962563,2.3748057,234.16,234.14,3.53370424]
[1759731962766,2.3748057,234.16,234.15,3.53370424]
[1759731962960,11.3814,234.22,234.15,3.53370424]
[1759731963164,45.32992631,234.17,234.16,3.53370424]
[1759731963562,2.3748057,234.19,234.16,3.53370424]
[1759731963763,2.3748057,234.19,234.17,3.53370424]
[1759731963965,2.3748057,234.19,234.18,3.52705242]
[1759731967770,57.61953771,234.19,234.18,3.52705242]
[1759731967970,52.09913287,234.19,234.12,5.40371542]
[1759731968167,49.51913287,234.18,234.13,3.52003823]
[1759731968369,49.51913287,234.18,234.14,3.52003823]
[1759731968562,41.97913287,234.18,234.15,3.52003823]
[1759731968767,49.51913287,234.17,234.16,3.52003823]
[1759731969275,7.54,234.17,234.16,3.52003823]
[1759731969673,5.40502338,234.17,234.16,3.52003823]
[1759731970174,2.58,234.18,234.16,3.52003823]
[1759731970376,2.58,234.18,234.17,3.52003823]
[1759731970876,44.55913287,234.18,234.17,3.52003823]
[1759731971672,52.09913287,234.18,234.17,3.52003823]
[1759731972068,52.09913287,234.18,234.13,0.84340522]
[1759731972069,7.54,234.15,234.13,0.84340522]
[1759731972268,41.97913287,234.12,234.09,1.9017347]
[1759731974379,7.54,234.16,234.09,3.3117347]
[1759731974580,41.97913287,234.15,234.09,3.3117347]
[1759731974780,41.97913287,234.15,234.1,1.9017347]
[1759731974973,41.97913287,234.14,234.1,3.3117347]
[1759731975174,41.97913287,234.14,234.1,1.9017347]
[1759731975378,7.54,234.16,234.11,1.41]
[1759731975569,41.97913287,234.14,234.11,1.41]
[1759731975774,20.02792908,234.2,234.12,1.41]
[1759731975980,41.97913287,234.16,234.12,1.41]
[1759731976583,20.02792908,234.2,234.12,1.41]
[1759731976784,41.97913287,234.16,234.12,1.41]
[1759731977184,49.51913287,234.15,234.1,6.57104232]
[1759731977380,49.51913287,234.15,234.11,4.66930762]
[1759731977887,49.51913287,234.15,234.11,6.04930762]
[1759731978886,41.97913287,234.14,234.12,4.66930762]
[1759731979391,7.44,234.19,234.11,11.09759365]
[1759731979589,41.97913287,234.16,234.15,1.9017347]
[1759731980091,7.44,234.18,234.15,1.9017347]
[1759731980284,41.97913287,234.16,234.15,6.49882421]
[1759731980482,41.97913287,234.17,234.16,1.38]
[1759731980885,19.92792908,234.2,234.16,1.38]
[1759731981084,41.97913287,234.17,234.16,1.38]
[1759731981279,41.97913287,234.17,234.15,6.49882421]
[1759731981592,19.92792908,234.2,234.15,7.87882421]
[1759731981783,41.97913287,234.19,234.16,1.38]
[1759731982092,41.97913287,234.19,234.16,5.97708951]
[1759731982288,19.92792908,234.2,234.17,4.59708951]
[1759731982479,41.97913287,234.19,234.17,4.59708951]
[1759731982881,19.92792908,234.2,234.17,4.59708951]
[1759731983085,41.97913287,234.19,234.17,4.59708951]
[1759731983577,19.92792908,234.2,234.17,4.59708951]
[1759731983784,7.44,234.18,234.17,4.59708951]
[1759731984085,7.44,234.18,234.17,7.33734006]
[1759731985488,49.41913287,234.18,234.17,7.33734006]
[1759731986189,49.41913287,234.18,234.17,11.94193173]
[1759731986391,49.41913287,234.18,234.17,7.33734006]
[1759731987493,49.41913287,234.18,234.14,4.60731173]
[1759731987686,7.44,234.14,234.13,4.60731173]
[1759731987887,49.41913287,234.14,234.1,4.60731173]
[1759731988084,7.44,234.14,234.1,4.60731173]
[1759731988293,7.44,234.14,234.11,4.60731173]
[1759731988884,7.44,234.18,234.11,4.60731173]
[1759731989090,49.41913287,234.14,234.11,4.60731173]
[1759731989291,4.23747871,234.14,234.11,4.60731173]
[1759731990187,41.97913287,234.13,234.11,4.60731173]
[1759731990385,41.97913287,234.13,234.12,4.60731173]
[1759731990582,3.8419,234.19,234.12,4.60731173]
[1759731990786,41.97913287,234.13,234.12,4.60731173]
[1759731991088,3.8419,234.19,234.12,4.60731173]
[1759731991089,41.97913287,234.14,234.12,4.60731173]
[1759731991283,41.97913287,234.14,234.13,4.60731173]
[1759731991491,49.41913287,234.14,234.13,4.60731173]
[1759731992389,49.41913287,234.14,234.11,7.25449365]
[1759731992790,7.44,234.14,234.11,7.25449365]
[1759731992991,7.44,234.14,234.13,4.63455882]
[1759731993388,7.44,234.14,234.11,7.25449365]
[1759731994291,7.44,234.14,234.1,3.8432]
[1759731994292,12.48792908,234.2,234.12,7.25449365]
[1759731994495,3.8423,234.16,234.14,4.64947869]
[1759731994790,12.48792908,234.2,234.12,4.64947869]
[1759731994791,1.9017347,234.19,234.12,4.64947869]
[1759731994990,1.9017347,234.15,234.1,4.64947869]
[1759731995291,59.7655,234.18,233.94,59.8254]
[1759731995292,41.97913287,234.08,234.06,4.64947869]
[1759731995487,12.48792908,234.2,234.06,4.64947869]
[1759731995696,1.9017347,234.15,234.06,4.64947869]
[1759731996086,41.97913287,234.07,234.04,17.36273945]
[1759731996396,49.46913287,234.07,234.04,12.71326076]
[1759731996691,49.46913287,234.07,234.03,7.25449365]
[1759731997089,49.46913287,234.07,234.04,7.25449365]
[1759731997395,49.46913287,234.07,234.01,7.56]
[1759731997396,49.46913287,234.07,234.06,4.67941564]
[1759731997693,49.46913287,234.07,234.04,7.25449365]
[1759731998589,7.49,234.06,234.03,7.25449365]
[1759731998794,67.0,234.14,234.02,7.25449365]
[1759731998795,7.49,234.1,234.02,7.25449365]
[1759731998994,7.49,234.1,233.97,7.56]
[1759731998995,7.49,234.1,234.04,4.67944157]
[1759731999191,7.49,234.04,234.03,4.67944157]
[1759731999589,7.49,234.04,234.03,8.03840562]
[1759731999794,49.46913287,234.04,234.03,8.03840562]
[1759731999998,7.49,234.04,234.03,8.03840562]
[1759732000194,49.46913287,234.04,234.03,8.03840562]
[1759732000390,7.49,234.08,234.03,3.35896405]
[1759732000587,41.97913287,234.05,234.04,3.35896405]
[1759732000991,1.21507795,234.07,234.04,3.35896405]
[1759732001189,41.97913287,234.05,234.02,4.67944157]
[1759732001501,41.97913287,234.05,234.03,3.35603834]
[1759732001704,7.49,234.16,234.04,3.35603834]
[1759732001901,1.21507795,234.08,234.05,3.35603834]
[1759732002104,7.49,234.07,234.06,3.35603834]
[1759732002496,49.46913287,234.07,234.06,3.35603834]
[1759732004404,50.68421082,234.07,234.06,3.35603834]
[1759732005497,49.46913287,234.07,234.06,3.35603834]
[1759732006103,50.68421082,234.07,234.06,3.35603834]
[1759732006907,49.46913287,234.07,234.06,3.35603834]
[1759732007107,50.68421082,234.07,234.06,3.35603834]
[1759732011813,50.68421082,234.07,234.02,3.8445]
[1759732012110,49.17913287,234.05,234.03,3.31911539]
[1759732012311,49.17913287,234.05,234.04,3.31911539]
[1759732012507,7.2,234.05,234.04,3.31911539]
[1759732014115,7.2,234.06,234.04,3.31911539]
[1759732014314,7.2,234.06,233.99,7.5]
[1759732014315,7.2,234.06,234.05,3.31911539]
[1759732014907,25.38,234.11,234.05,3.31911539]
[1759732015110,41.97913287,234.08,234.06,3.31911539]
[1759732015310,41.97913287,234.08,234.07,3.31911539]
[1759732015510,7.2,234.1,234.07,3.31911539]
[1759732015710,41.97913287,234.08,234.02,7.5]
[1759732016012,41.97913287,234.08,234.04,7.5]
[1759732016215,95.16,234.12,234.06,3.8438]
[1759732016515,49.17913287,234.09,234.07,3.31756007]
[1759732016814,49.17913287,234.09,234.08,3.31756007]
[1759732019007,49.17913287,234.09,233.99,8.71507795]
[1759732019206,41.97913287,234.08,234.0,3.31779571]
[1759732019417,41.97913287,234.08,234.01,3.31779571]
[1759732019616,7.2,234.09,234.02,3.31779571]
[1759732019817,49.17913287,234.08,234.04,3.8442]
[1759732020110,1.21507795,234.11,234.05,3.31779571]
[1759732020307,1.21507795,234.11,234.06,3.31779571]
[1759732020513,1.21507795,234.11,234.07,3.31779571]
[1759732020714,7.2,234.13,234.08,3.31779571]
[1759732020907,41.97913287,234.05,233.99,5.89451952]
[1759732021209,41.97913287,234.05,234.01,7.5]
[1759732021407,7.2,234.1,234.02,3.31713979]
[1759732021606,49.17913287,234.05,234.03,7.16163979]
[1759732021813,49.17913287,234.05,234.04,3.31713979]
[1759732022416,7.2,234.08,234.05,3.844]
[1759732022614,41.97913287,234.06,234.05,3.844]
[1759732022814,7.2,234.08,234.05,3.844]
[1759732022815,7.2,234.08,234.05,10.81746543]
[1759732023018,7.2,234.08,234.06,7.16126543]
[1759732023220,7.2,234.08,234.07,3.31746543]
[1759732023718,106.08,234.12,234.08,3.8436]
[1759732023914,7.2,234.13,234.09,3.31746543]
[1759732024220,41.97913287,234.09,234.08,3.8436]
[1759732024420,41.97913287,234.12,234.09,7.5]
[1759732024720,7.2,234.13,234.1,3.31797555]
[1759732024916,41.97913287,234.12,234.11,14.66107555]
[1759732025116,1.21507795,234.23,234.11,10.81797555]
[1759732025317,7.2,234.22,234.14,7.5]
[1759732025525,41.97913287,234.19,234.15,3.31797555]
[1759732025721,7.2,234.22,234.16,10.81797555]
[1759732026019,7.2,234.27,234.18,11.342]
[1759732026214,2.16239832,234.2,234.19,12.0330535]
[1759732026917,2.16239832,234.2,234.19,3.31797555]
[1759732027122,9.36239832,234.2,234.19,3.31797555]
[1759732027324,51.34153119,234.2,234.19,3.31797555]
[1759732028824,51.34153119,234.2,234.13,5.05787795]
[1759732029124,41.97913287,234.16,234.14,3.31436105]
[1759732029319,49.17913287,234.16,234.15,3.31436105]
[1759732029725,50.39421082,234.16,234.15,3.31436105]
[1759732029925,8.41507795,234.16,234.15,3.31436105]
[1759732030124,50.39421082,234.16,234.15,3.31436105]
[1759732030326,49.17913287,234.16,234.15,3.31436105]
[1759732034636,50.39421082,234.16,234.15,3.31436105]
[1759732035539,49.17913287,234.16,234.15,3.31436105]
[1759732036039,7.2,234.19,234.15,3.31436105]
[1759732036233,41.97913287,234.17,234.16,3.31436105]
[1759732036435,116.75747627,234.2,234.16,3.31436105]
[1759732036436,2.16239832,234.2,234.16,3.31436105]
[1759732036638,2.16239832,234.2,234.17,10.81436105]
[1759732036839,2.16239832,234.2,234.18,3.31436105]
[1759732037140,41.97913287,234.18,234.14,7.5]
[1759732037339,41.97913287,234.18,234.15,3.32655692]
[1759732037538,7.2,234.19,234.16,3.32655692]
[1759732037741,2.16239832,234.2,234.17,3.32655692]
[1759732037943,44.14153119,234.2,234.18,3.32655692]
[1759732038136,51.36153119,234.2,234.14,7.5]
[1759732038338,51.36153119,234.2,234.15,10.65639639]
[1759732038537,51.36153119,234.2,234.16,7.16869639]
[1759732038741,44.14153119,234.2,234.17,3.32639639]
[1759732038941,41.97913287,234.19,234.18,3.32639639]
[1759732039342,2.16239832,234.2,234.18,3.32639639]
[1759732039543,41.97913287,234.19,234.16,14.67032475]
[1759732039735,41.97913287,234.19,234.17,3.32470914]
[1759732039939,41.97913287,234.19,234.18,3.32470914]
[1759732040143,7.22,234.19,234.18,3.32470914]
[1759732040344,49.19913287,234.19,234.18,3.32470914]
[1759732040935,9.38239832,234.2,234.18,3.32470914]
[1759732041138,41.97913287,234.19,234.13,7.34082475]
[1759732041335,49.19913287,234.18,234.14,3.32448189]
[1759732041642,49.19913287,234.18,234.15,3.32448189]
[1759732041842,49.19913287,234.18,234.16,3.32448189]
[1759732042045,41.97913287,234.17,234.13,14.67082475]
[1759732042243,41.97913287,234.17,234.14,3.32432213]
[1759732042443,7.22,234.16,234.15,3.32432213]
[1759732042645,49.19913287,234.16,234.15,3.32432213]
[1759732044539,49.19913287,234.16,234.08,3.49802475]
[1759732044746,49.19913287,234.12,234.09,3.32589002]
[1759732044939,7.22,234.12,234.1,3.32589002]
[1759732045139,7.22,234.12,234.08,3.49796581]
[1759732045140,7.22,234.12,234.11,3.32589002]
[1759732047241,49.19913287,234.12,234.11,3.32589002]
[1759732050948,3.842,234.19,234.11,3.32589002]
[1759732051147,1.21507795,234.15,234.12,3.32589002]
[1759732051344,7.22,234.14,234.13,3.32589002]
[1759732051847,49.19913287,234.14,234.13,3.32589002]
[1759732052447,155.29913287,234.14,234.13,3.32589002]
[1759732054547,148.05913287,234.14,234.13,3.32589002]
[1759732054747,155.53913287,234.14,234.13,3.32589002]
[1759732057550,49.45913287,234.14,234.13,3.32589002]
[1759732057747,41.97913287,234.14,234.13,3.32589002]
[1759732058052,49.45913287,234.14,234.13,3.32589002]
[1759732059853,7.48,234.14,234.13,3.32589002]
[1759732060154,49.45913287,234.14,234.13,3.32589002]
[1759732062246,41.97913287,234.14,234.13,3.32589002]
[1759732062451,147.91913287,234.14,234.13,3.32589002]
[1759732063244,155.39913287,234.14,234.13,3.32589002]
[1759732064354,3.842,234.18,234.13,3.32589002]
[1759732064659,49.45913287,234.15,234.14,3.32589002]
[1759732064857,7.48,234.15,234.14,3.32589002]
[1759732066655,99.94,234.15,234.14,3.32589002]
[1759732068061,141.91913287,234.15,234.14,3.32589002]
[1759732071458,141.91913287,234.15,234.14,3.12442633]
[1759732073364,155.15913287,234.15,234.14,3.12442633]
[1759732073567,49.45913287,234.15,234.14,3.12442633]
[1759732073756,155.13913287,234.15,234.14,3.12442633]
[1759732074367,41.97913287,234.15,234.14,3.12442633]
[1759732074565,129.95913287,234.15,234.14,3.12442633]
[1759732076166,87.98,234.15,234.14,3.12442633]
[1759732077364,7.26,234.19,234.14,6.96692633]
[1759732077666,41.97913287,234.16,234.14,3.8425]
[1759732077866,105.62,234.15,234.14,7.34046581]
[1759732078663,7.26,234.19,234.16,3.8423]
[1759732078866,80.92,234.18,234.16,3.8423]
[1759732079765,7.26,234.19,234.16,3.8423]
[1759732079962,53.04,234.18,234.16,3.8423]
[1759732080365,105.58,234.19,234.16,11.4423]
[1759732080760,7.26,234.19,234.16,3.51073764]
[1759732080963,7.26,234.19,234.17,3.51073764]
[1759732081562,2.16239832,234.2,234.17,3.51073764]
[1759732081765,44.14153119,234.2,234.17,3.51073764]
[1759732082662,2.16239832,234.2,234.18,7.6]
[1759732082863,2.16239832,234.2,234.19,7.6]
[1759732083469,2.16239832,234.2,234.19,10.92432013]
[1759732083967,2.16239832,234.2,234.19,14.43505777]
[1759732084162,2.16239832,234.2,234.19,10.92432013]
[1759732084372,2.16239832,234.2,234.19,11.10878913]
[1759732084570,9.832e-05,234.2,234.19,9.91728538]
[1759732084765,9.832e-05,234.2,234.19,8.02]
[1759732086274,9.832e-05,234.2,234.19,12.69944157]
[1759732086475,9.832e-05,234.2,234.19,14.59672695]
[1759732086974,9.832e-05,234.2,234.19,12.69944157]
[1759732087674,9.832e-05,234.2,234.19,7.6]
[1759732088971,9.832e-05,234.2,234.17,4.67944157]
[1759732089177,9.832e-05,234.2,234.16,3.5034423]
[1759732089376,41.97913287,234.17,234.14,3.5034423]
[1759732089567,41.97913287,234.17,234.14,7.3459423]
[1759732089767,7.26009832,234.2,234.14,7.3459423]
[1759732090273,41.97913287,234.17,234.14,11.1034423]
[1759732090772,7.26009832,234.2,234.16,3.8423]
[1759732090972,7.26009832,234.2,234.16,7.3457423]
[1759732091276,41.97913287,234.19,234.16,14.9457423]
[1759732091475,41.97913287,234.19,234.16,11.4423]
[1759732091671,7.26009832,234.2,234.16,3.8423]
[1759732091876,9.832e-05,234.2,234.16,3.8423]
[1759732092076,41.97913287,234.18,234.15,3.5034423]
[1759732092272,7.26,234.18,234.11,3.5034423]
[1759732092474,41.97913287,234.14,234.11,11.1034423]
[1759732092671,41.97913287,234.14,234.11,14.9464423]
[1759732092878,7.26,234.18,234.13,11.1034423]
[1759732093073,7.26,234.18,234.14,11.1034423]
[1759732093269,49.23913287,234.18,234.14,11.1034423]
[1759732094578,49.23913287,234.18,234.14,14.9459423]
[1759732094979,41.97913287,234.16,234.14,7.3459423]
[1759732095175,7.26,234.16,234.14,7.3459423]
[1759732095381,41.97913287,234.15,234.14,7.3459423]
[1759732095878,7.26009832,234.2,234.14,7.3459423]
[1759732096077,41.97913287,234.15,234.14,7.3459423]
[1759732096479,7.26009832,234.2,234.14,7.3459423]
[1759732096676,41.97913287,234.15,234.14,7.3459423]
[1759732097080,7.26009832,234.2,234.14,7.3459423]
[1759732097277,41.97913287,234.15,234.14,7.3459423]
[1759732097678,7.26009832,234.2,234.14,7.3459423]
[1759732097879,41.97913287,234.15,234.14,7.3459423]
[1759732098380,7.26009832,234.2,234.14,7.3459423]
[1759732098581,41.97913287,234.15,234.14,7.3459423]
[1759732098978,7.26009832,234.2,234.14,7.3459423]
[1759732099282,41.97913287,234.15,234.14,3.8425]
[1759732099486,7.26009832,234.2,234.14,3.8425]
[1759732099679,41.97913287,234.15,234.14,3.8425]
[1759732099874,41.97913287,234.16,234.12,3.5034423]
[1759732100180,49.54913287,234.16,234.09,12.27944157]
[1759732100381,49.54913287,234.16,234.12,10.88199521]
[1759732100779,49.54913287,234.16,234.12,14.72479521]
[1759732100983,9.832e-05,234.2,234.12,3.50199521]
[1759732101176,41.97913287,234.14,234.12,3.50199521]
[1759732101382,49.54913287,234.14,234.12,3.50199521]
[1759732101582,7.57,234.14,234.12,3.50199521]
[1759732103185,7.57,234.14,234.13,3.50199521]
[1759732103881,7.57,234.14,234.12,3.50199521]
[1759732104186,7.57,234.14,234.13,3.50199521]
[1759732104683,3.842,234.19,234.13,3.50199521]
[1759732104983,49.54913287,234.14,234.13,3.50199521]
[1759732105485,7.57,234.14,234.13,3.50199521]
[1759732105981,11.412,234.19,234.13,3.50199521]
[1759732106183,7.57,234.14,234.13,3.50199521]
[1759732106376,7.57,234.14,234.12,3.50199521]
[1759732106377,7.57,234.13,234.12,3.50199521]
[1759732106576,7.57,234.13,234.09,3.8433]
[1759732106577,7.57,234.12,234.11,3.50199521]
[1759732106783,49.54913287,234.12,234.11,3.50199521]
[1759732106984,7.57,234.12,234.11,3.50199521]
[1759732109482,3.842,234.18,234.11,3.50199521]
[1759732109690,41.97913287,234.12,234.11,3.50199521]
[1759732110290,7.57,234.17,234.11,3.50199521]
[1759732110485,41.97913287,234.12,234.11,3.50199521]
[1759732110892,41.97913287,234.13,234.11,3.50199521]
[1759732111382,49.54913287,234.13,234.11,3.50199521]
[1759732112789,41.97913287,234.13,234.11,3.50199521]
[1759732112985,49.54913287,234.13,234.11,3.50199521]
[1759732113181,7.57,234.12,234.11,3.50199521]
[1759732115085,7.62,234.17,234.11,3.50199521]
[1759732115288,41.97913287,234.12,234.11,3.50199521]
[1759732115491,7.62,234.17,234.11,3.50199521]
[1759732115690,41.97913287,234.12,234.11,3.50199521]
[1759732115890,7.62,234.17,234.11,3.50199521]